[Event "Titled Tuesday Blitz August 3 2021"]
[White "Dev, Shah"]
[Black "Moon_stone123"]
[WhiteFideId "35019058"]
[WhiteElo "2098"]
[BlackElo "2416"]
[Result "0-1"]
[Round "07"]
[TimeControl "180+1"]
[Date "2021.08.03"]
[WhiteClock "0:00:09"]
[BlackClock "0:00:19"]

1. d4 {[%clk 0:03:00]}  d5 {[%clk 0:02:58]} 2. c4 {[%clk 0:03:00]}  dxc4 {[%clk 0:02:57]} 3. Nc3 {[%clk 0:03:00]}  e5 {[%clk 0:02:54]} 4. dxe5 {[%clk 0:02:58]}  Qxd1+ {[%clk 0:02:51]} 5. Nxd1 {[%clk 0:02:58]}  Nc6 {[%clk 0:02:46]} 6. Nf3 {[%clk 0:02:58]}  Be6 {[%clk 0:02:44]} 7. e4 {[%clk 0:02:51]}  O-O-O {[%clk 0:02:44]} 8. Ne3 {[%clk 0:02:51]}  Bb4+ {[%clk 0:02:41]} 9. Bd2 {[%clk 0:02:49]}  Bxd2+ {[%clk 0:02:40]} 10. Nxd2 {[%clk 0:02:50]}  Nxe5 {[%clk 0:02:40]} 11. Ndxc4 {[%clk 0:02:47]}  Nxc4 {[%clk 0:02:40]} 12. Bxc4 {[%clk 0:02:47]}  Bxc4 {[%clk 0:02:39]} 13. Nxc4 {[%clk 0:02:48]}  Ne7 {[%clk 0:02:21]} 14. f3 {[%clk 0:02:37]}  Rd4 {[%clk 0:02:08]} 15. Ne3 {[%clk 0:02:33]}  Rhd8 {[%clk 0:02:07]} 16. Rd1 {[%clk 0:02:33]}  Rxd1+ {[%clk 0:02:04]} 17. Nxd1 {[%clk 0:02:34]}  f5 {[%clk 0:02:00]} 18. Nc3 {[%clk 0:02:25]}  fxe4 {[%clk 0:01:59]} 19. Nxe4 {[%clk 0:02:26]}  Nf5 {[%clk 0:01:55]} 20. Kf2 {[%clk 0:02:20]}  Nd6 {[%clk 0:01:54]} 21. Nc3 {[%clk 0:02:20]}  Nc4 {[%clk 0:01:51]} 22. b3 {[%clk 0:02:12]}  Rd2+ {[%clk 0:01:39]} 23. Kg3 {[%clk 0:02:01]}  Ne3 {[%clk 0:01:36]} 24. Re1 {[%clk 0:01:54]}  Rxg2+ {[%clk 0:01:25]} 25. Kh3 {[%clk 0:01:54]}  Nc2 {[%clk 0:01:17]} 26. Rc1 {[%clk 0:01:47]}  Ne3 {[%clk 0:01:09]} 27. Re1 {[%clk 0:01:17]}  Nc2 {[%clk 0:01:07]} 28. Re8+ {[%clk 0:01:04]}  Kd7 {[%clk 0:01:06]} 29. Rb8 {[%clk 0:01:04]}  Ne3 {[%clk 0:00:59]} 30. Rxb7 {[%clk 0:00:56]}  Rc2 {[%clk 0:00:57]} 31. Ne4 {[%clk 0:00:49]}  Rxa2 {[%clk 0:00:56]} 32. Ng3 {[%clk 0:00:34]}  a5 {[%clk 0:00:54]} 33. Rb5 {[%clk 0:00:33]}  Kc6 {[%clk 0:00:52]} 34. Re5 {[%clk 0:00:33]}  Nd5 {[%clk 0:00:49]} 35. Ne4 {[%clk 0:00:29]}  Nf4+ {[%clk 0:00:42]} 36. Kg4 {[%clk 0:00:28]}  Ng6 {[%clk 0:00:42]} 37. Re6+ {[%clk 0:00:28]}  Kd7 {[%clk 0:00:38]} 38. Nc5+ {[%clk 0:00:27]}  Kd8 {[%clk 0:00:38]} 39. Nb7+ {[%clk 0:00:18]}  Kd7 {[%clk 0:00:37]} 40. Nc5+ {[%clk 0:00:19]}  Kd8 {[%clk 0:00:37]} 41. Nb7+ {[%clk 0:00:18]}  Kc8 {[%clk 0:00:37]} 42. Nc5 {[%clk 0:00:18]}  Kb8 {[%clk 0:00:30]} 43. Nd7+ {[%clk 0:00:15]}  Ka7 {[%clk 0:00:30]} 44. Nc5 {[%clk 0:00:12]}  Rxh2 {[%clk 0:00:29]} 45. Ra6+ {[%clk 0:00:09]}  Kb8 {[%clk 0:00:29]} 46. Nd7+ {[%clk 0:00:08]}  Kb7 {[%clk 0:00:29]} 47. Nc5+ {[%clk 0:00:09]}  Kb8 {[%clk 0:00:29]} 48. Nd7+ {[%clk 0:00:09]}  Kc8 {[%clk 0:00:30]} 49. Nc5 {[%clk 0:00:10]}  Kd8 {[%clk 0:00:28]} 50. Ne6+ {[%clk 0:00:10]}  Kd7 {[%clk 0:00:27]} 51. Nxg7 {[%clk 0:00:10]}  Rg2+ {[%clk 0:00:25]} 52. Kf5 {[%clk 0:00:04]}  Nh4+ {[%clk 0:00:24]} 53. Kf6 {[%clk 0:00:04]}  Rg6+ {[%clk 0:00:22]} 54. Kf7 {[%clk 0:00:05]}  Rxa6 {[%clk 0:00:23]} 55. Nh5 {[%clk 0:00:04]}  Rb6 {[%clk 0:00:21]} 56. Nf6+ {[%clk 0:00:05]}  Kc8 {[%clk 0:00:21]} 57. Ne4 {[%clk 0:00:06]}  Nxf3 {[%clk 0:00:21]} 58. Nc5 {[%clk 0:00:07]}  Ne5+ {[%clk 0:00:20]} 59. Ke7 {[%clk 0:00:06]}  Nc6+ {[%clk 0:00:21]} 60. Ke8 {[%clk 0:00:06]}  Rb5 {[%clk 0:00:20]} 61. Ne6 {[%clk 0:00:03]}  Rxb3 {[%clk 0:00:20]} 62. Nxc7 {[%clk 0:00:04]}  Kxc7 {[%clk 0:00:19]} 63. Kf7 {[%clk 0:00:05]}  a4 {[%clk 0:00:19]} 64. Ke8 {[%clk 0:00:06]}  a3 {[%clk 0:00:19]} 65. Kf7 {[%clk 0:00:06]}  a2 {[%clk 0:00:20]} 66. Ke8 {[%clk 0:00:07]}  a1=Q {[%clk 0:00:20]} 67. Kf7 {[%clk 0:00:08]}  Qe5 {[%clk 0:00:19]} 68. Kg8 {[%clk 0:00:08]}  Rg3+ {[%clk 0:00:19]} 69. Kf7 {[%clk 0:00:09]}  Qe7# {[%clk 0:00:19]} 0-1


[Site "https://www.chess.com"]

[Event "Titled Tuesday Blitz August 3 2021"]
[White "Devaev, Alexander"]
[Black "Piesik, Piotr"]
[WhiteFideId "4169395"]
[BlackFideId "1136194"]
[WhiteElo "2185"]
[BlackElo "2354"]
[Result "0-1"]
[Round "07"]
[TimeControl "180+1"]
[Date "2021.08.03"]
[WhiteClock "0:00:37"]
[BlackClock "0:02:09"]

1. d4 {[%clk 0:03:00]}  c5 {[%clk 0:02:59]} 2. d5 {[%clk 0:03:01]}  e5 {[%clk 0:02:58]} 3. c4 {[%clk 0:03:01]}  d6 {[%clk 0:02:58]} 4. Nc3 {[%clk 0:03:02]}  Be7 {[%clk 0:02:59]} 5. h3 {[%clk 0:02:58]}  Bg5 {[%clk 0:02:55]} 6. e3 {[%clk 0:02:59]}  f5 {[%clk 0:02:54]} 7. Nf3 {[%clk 0:02:55]}  Bh6 {[%clk 0:02:54]} 8. Be2 {[%clk 0:02:46]}  Nf6 {[%clk 0:02:53]} 9. Nh4 {[%clk 0:02:32]}  O-O {[%clk 0:02:51]} 10. Bd2 {[%clk 0:02:10]}  Ne4 {[%clk 0:02:47]} 11. Nf3 {[%clk 0:01:53]}  Nxd2 {[%clk 0:02:44]} 12. Nxd2 {[%clk 0:01:52]}  e4 {[%clk 0:02:40]} 13. Qc2 {[%clk 0:01:48]}  Nd7 {[%clk 0:02:35]} 14. O-O-O {[%clk 0:01:47]}  Ne5 {[%clk 0:02:35]} 15. Kb1 {[%clk 0:01:47]}  a6 {[%clk 0:02:34]} 16. Rdg1 {[%clk 0:01:47]}  b5 {[%clk 0:02:32]} 17. g4 {[%clk 0:01:31]}  f4 {[%clk 0:02:26]} 18. g5 {[%clk 0:01:04]}  Bxg5 {[%clk 0:02:24]} 19. Ndxe4 {[%clk 0:01:05]}  Bh6 {[%clk 0:02:24]} 20. h4 {[%clk 0:00:46]}  Bf5 {[%clk 0:02:18]} 21. Bg4 {[%clk 0:00:37]}  Nxg4 {[%clk 0:02:16]} 22. Rxg4 {[%clk 0:00:35]}  Bxg4 {[%clk 0:02:15]} 23. Ng5 {[%clk 0:00:36]}  Bxg5 {[%clk 0:02:13]} 24. e4 {[%clk 0:00:37]}  Bf6 {[%clk 0:02:09]} 0-1


[Site "https://www.chess.com"]

[Event "Titled Tuesday Blitz August 3 2021"]
[White "Dvirnyy, Danyyil"]
[Black "Bluebaum, Matthias"]
[WhiteFideId "817570"]
[BlackFideId "24651516"]
[WhiteElo "2531"]
[BlackElo "2685"]
[Result "0-1"]
[Round "07"]
[TimeControl "180+1"]
[Date "2021.08.03"]
[WhiteClock "0:00:36"]
[BlackClock "0:01:02"]

1. e4 {[%clk 0:02:55]}  e6 {[%clk 0:02:59]} 2. d4 {[%clk 0:02:55]}  d5 {[%clk 0:03:00]} 3. Nc3 {[%clk 0:02:55]}  Nf6 {[%clk 0:03:00]} 4. Bg5 {[%clk 0:02:55]}  dxe4 {[%clk 0:03:00]} 5. Nxe4 {[%clk 0:02:56]}  Be7 {[%clk 0:03:01]} 6. Bxf6 {[%clk 0:02:56]}  gxf6 {[%clk 0:03:02]} 7. Nf3 {[%clk 0:02:55]}  f5 {[%clk 0:03:02]} 8. Nc3 {[%clk 0:02:52]}  a6 {[%clk 0:03:03]} 9. Qe2 {[%clk 0:02:49]}  b5 {[%clk 0:03:01]} 10. O-O-O {[%clk 0:02:46]}  b4 {[%clk 0:03:01]} 11. Na4 {[%clk 0:02:32]}  Qd5 {[%clk 0:03:01]} 12. c4 {[%clk 0:02:15]}  Qa5 {[%clk 0:03:00]} 13. Nc5 {[%clk 0:02:01]}  Nd7 {[%clk 0:02:46]} 14. Nb3 {[%clk 0:01:54]}  Qxa2 {[%clk 0:02:26]} 15. Kc2 {[%clk 0:01:51]}  Qa4 {[%clk 0:02:26]} 16. d5 {[%clk 0:01:48]}  Nc5 {[%clk 0:02:24]} 17. Nd4 {[%clk 0:01:46]}  Nxb3 {[%clk 0:02:07]} 18. Nxb3 {[%clk 0:01:44]}  Bf6 {[%clk 0:01:54]} 19. Ra1 {[%clk 0:01:07]}  Qd7 {[%clk 0:01:52]} 20. dxe6 {[%clk 0:01:04]}  fxe6 {[%clk 0:01:52]} 21. Qf3 {[%clk 0:01:02]}  Ra7 {[%clk 0:01:45]} 22. Bd3 {[%clk 0:00:59]}  O-O {[%clk 0:01:38]} 23. Rhd1 {[%clk 0:00:54]}  Qg7 {[%clk 0:01:36]} 24. Qe3 {[%clk 0:00:50]}  c5 {[%clk 0:01:32]} 25. Ra2 {[%clk 0:00:46]}  a5 {[%clk 0:01:26]} 26. Nxc5 {[%clk 0:00:37]}  Bd4 {[%clk 0:01:01]} 27. Nxe6 {[%clk 0:00:36]}  b3+ {[%clk 0:01:02]} 0-1


[Site "https://www.chess.com"]

[Event "Titled Tuesday Blitz August 3 2021"]
[White "Erdogdu, Mert"]
[Black "Ismagilov, Damir"]
[WhiteFideId "6301495"]
[BlackFideId "34199982"]
[WhiteElo "2485"]
[BlackElo "2075"]
[Result "0-1"]
[Round "07"]
[TimeControl "180+1"]
[Date "2021.08.03"]
[WhiteClock "0:00:01"]
[BlackClock "0:00:08"]

1. e4 {[%clk 0:03:00]}  c5 {[%clk 0:02:59]} 2. Nf3 {[%clk 0:03:00]}  d6 {[%clk 0:02:59]} 3. d4 {[%clk 0:03:00]}  cxd4 {[%clk 0:03:00]} 4. Nxd4 {[%clk 0:03:01]}  Nf6 {[%clk 0:03:00]} 5. Nc3 {[%clk 0:03:01]}  a6 {[%clk 0:03:00]} 6. Be3 {[%clk 0:03:02]}  e6 {[%clk 0:02:57]} 7. f3 {[%clk 0:02:58]}  h5 {[%clk 0:02:56]} 8. Qd2 {[%clk 0:02:58]}  Be7 {[%clk 0:02:53]} 9. O-O-O {[%clk 0:02:57]}  b5 {[%clk 0:02:52]} 10. h3 {[%clk 0:02:54]}  Bb7 {[%clk 0:02:45]} 11. Bd3 {[%clk 0:02:53]}  Nbd7 {[%clk 0:02:43]} 12. g4 {[%clk 0:02:50]}  g6 {[%clk 0:02:30]} 13. g5 {[%clk 0:02:47]}  Nh7 {[%clk 0:02:29]} 14. f4 {[%clk 0:02:45]}  Nc5 {[%clk 0:02:17]} 15. a3 {[%clk 0:02:37]}  e5 {[%clk 0:02:01]} 16. Nf3 {[%clk 0:02:20]}  Qc7 {[%clk 0:01:55]} 17. Kb1 {[%clk 0:02:03]}  exf4 {[%clk 0:01:54]} 18. Bxf4 {[%clk 0:02:01]}  Ne6 {[%clk 0:01:48]} 19. Nd5 {[%clk 0:01:55]}  Bxd5 {[%clk 0:01:45]} 20. exd5 {[%clk 0:01:56]}  Nxf4 {[%clk 0:01:44]} 21. Qxf4 {[%clk 0:01:55]}  O-O {[%clk 0:01:41]} 22. h4 {[%clk 0:01:54]}  Rfe8 {[%clk 0:01:36]} 23. Nd4 {[%clk 0:01:51]}  Bf8 {[%clk 0:01:35]} 24. Nc6 {[%clk 0:01:46]}  Bg7 {[%clk 0:01:35]} 25. Rhe1 {[%clk 0:01:39]}  Nf8 {[%clk 0:01:33]} 26. Re4 {[%clk 0:01:30]}  Rxe4 {[%clk 0:01:26]} 27. Bxe4 {[%clk 0:01:26]}  Re8 {[%clk 0:01:25]} 28. Rf1 {[%clk 0:01:19]}  Be5 {[%clk 0:01:15]} 29. Qf3 {[%clk 0:01:14]}  Kg7 {[%clk 0:01:10]} 30. Bd3 {[%clk 0:01:07]}  Qd7 {[%clk 0:01:03]} 31. c3 {[%clk 0:01:02]}  Qc7 {[%clk 0:00:53]} 32. Ka2 {[%clk 0:01:01]}  Kg8 {[%clk 0:00:53]} 33. Re1 {[%clk 0:00:57]}  Nd7 {[%clk 0:00:48]} 34. Bc2 {[%clk 0:00:53]}  Nb6 {[%clk 0:00:45]} 35. Rf1 {[%clk 0:00:49]}  Nc4 {[%clk 0:00:43]} 36. Rf2 {[%clk 0:00:45]}  Bg7 {[%clk 0:00:34]} 37. Bb3 {[%clk 0:00:40]}  Ne5 {[%clk 0:00:33]} 38. Qg2 {[%clk 0:00:39]}  Nd3 {[%clk 0:00:29]} 39. Rd2 {[%clk 0:00:37]}  Nc1+ {[%clk 0:00:29]} 40. Kb1 {[%clk 0:00:36]}  Nxb3 {[%clk 0:00:29]} 41. Re2 {[%clk 0:00:29]}  Qd7 {[%clk 0:00:27]} 42. Kc2 {[%clk 0:00:28]}  Nc5 {[%clk 0:00:26]} 43. Qf3 {[%clk 0:00:22]}  Qf5+ {[%clk 0:00:25]} 44. Qxf5 {[%clk 0:00:21]}  Rxe2+ {[%clk 0:00:24]} 45. Kd1 {[%clk 0:00:22]}  gxf5 {[%clk 0:00:24]} 46. Kxe2 {[%clk 0:00:23]}  Na4 {[%clk 0:00:24]} 47. Ne7+ {[%clk 0:00:22]}  Kh7 {[%clk 0:00:21]} 48. Nxf5 {[%clk 0:00:23]}  Be5 {[%clk 0:00:19]} 49. Kd3 {[%clk 0:00:17]}  Nxb2+ {[%clk 0:00:19]} 50. Kc2 {[%clk 0:00:17]}  Nc4 {[%clk 0:00:20]} 51. Kb3 {[%clk 0:00:17]}  Kg6 {[%clk 0:00:21]} 52. Ne7+ {[%clk 0:00:17]}  Kg7 {[%clk 0:00:20]} 53. Nf5+ {[%clk 0:00:17]}  Kf8 {[%clk 0:00:20]} 54. a4 {[%clk 0:00:16]}  Nd2+ {[%clk 0:00:18]} 55. Kc2 {[%clk 0:00:15]}  Ne4 {[%clk 0:00:19]} 56. axb5 {[%clk 0:00:15]}  axb5 {[%clk 0:00:20]} 57. Kd3 {[%clk 0:00:11]}  Nxc3 {[%clk 0:00:20]} 58. Ne3 {[%clk 0:00:07]}  b4 {[%clk 0:00:19]} 59. Kc4 {[%clk 0:00:07]}  Ne4 {[%clk 0:00:14]} 60. Kxb4 {[%clk 0:00:06]}  Bg3 {[%clk 0:00:15]} 61. Nf5 {[%clk 0:00:06]}  Be5 {[%clk 0:00:13]} 62. Kc4 {[%clk 0:00:06]}  Ng3 {[%clk 0:00:14]} 63. Ne3 {[%clk 0:00:06]}  Bf4 {[%clk 0:00:14]} 64. Ng2 {[%clk 0:00:05]}  Be5 {[%clk 0:00:13]} 65. Kd3 {[%clk 0:00:05]}  Kg7 {[%clk 0:00:12]} 66. Ne3 {[%clk 0:00:04]}  Kg6 {[%clk 0:00:12]} 67. Nc4 {[%clk 0:00:05]}  Nf5 {[%clk 0:00:12]} 68. Ke4 {[%clk 0:00:04]}  Bh2 {[%clk 0:00:09]} 69. Kf3 {[%clk 0:00:01]}  Nxh4+ {[%clk 0:00:09]} 70. Kf2 {[%clk 0:00:01]}  Nf5 {[%clk 0:00:10]} 71. Kg2 {[%clk 0:00:01]}  Be5 {[%clk 0:00:10]} 72. Kh3 {[%clk 0:00:01]}  Kxg5 {[%clk 0:00:10]} 73. Nd2 {[%clk 0:00:01]}  Kf4 {[%clk 0:00:10]} 74. Nc4 {[%clk 0:00:01]}  Ne3 {[%clk 0:00:08]} 0-1


[Site "https://www.chess.com"]

[Event "Titled Tuesday Blitz August 3 2021"]
[White "Ezat, Mohamed"]
[Black "Pandey Srishti"]
[WhiteFideId "10600906"]
[BlackFideId "35093290"]
[WhiteElo "2414"]
[BlackElo "1816"]
[Result "1-0"]
[Round "07"]
[TimeControl "180+1"]
[Date "2021.08.03"]
[WhiteClock "0:01:30"]
[BlackClock "0:01:31"]

1. d4 {[%clk 0:03:00]}  d5 {[%clk 0:02:55]} 2. c4 {[%clk 0:02:59]}  c6 {[%clk 0:02:54]} 3. Nc3 {[%clk 0:02:58]}  Nf6 {[%clk 0:02:53]} 4. cxd5 {[%clk 0:02:57]}  cxd5 {[%clk 0:02:53]} 5. Bf4 {[%clk 0:02:55]}  Nc6 {[%clk 0:02:53]} 6. e3 {[%clk 0:02:50]}  a6 {[%clk 0:02:53]} 7. Bd3 {[%clk 0:02:46]}  Bg4 {[%clk 0:02:51]} 8. f3 {[%clk 0:02:46]}  Bh5 {[%clk 0:02:50]} 9. Qb3 {[%clk 0:02:46]}  Qc8 {[%clk 0:02:49]} 10. Na4 {[%clk 0:02:44]}  Nd7 {[%clk 0:02:46]} 11. Qxd5 {[%clk 0:02:37]}  Nb4 {[%clk 0:02:43]} 12. Qb3 {[%clk 0:02:31]}  e6 {[%clk 0:02:33]} 13. a3 {[%clk 0:02:06]}  Nxd3+ {[%clk 0:02:30]} 14. Qxd3 {[%clk 0:02:07]}  Qc6 {[%clk 0:02:26]} 15. Nc3 {[%clk 0:02:01]}  Be7 {[%clk 0:02:18]} 16. Nge2 {[%clk 0:01:59]}  O-O {[%clk 0:02:17]} 17. O-O {[%clk 0:01:59]}  Rfd8 {[%clk 0:02:17]} 18. Rac1 {[%clk 0:01:58]}  e5 {[%clk 0:02:14]} 19. Bg3 {[%clk 0:01:49]}  exd4 {[%clk 0:02:13]} 20. Nxd4 {[%clk 0:01:47]}  Qb6 {[%clk 0:02:12]} 21. Nd5 {[%clk 0:01:45]}  Nc5 {[%clk 0:01:43]} 22. Nxe7+ {[%clk 0:01:42]}  Kf8 {[%clk 0:01:42]} 23. Qxh7 {[%clk 0:01:38]}  Kxe7 {[%clk 0:01:41]} 24. Qxh5 {[%clk 0:01:35]}  Rac8 {[%clk 0:01:36]} 25. Nf5+ {[%clk 0:01:32]}  Kf8 {[%clk 0:01:31]} 26. Qh8# {[%clk 0:01:30]} 1-0


[Site "https://www.chess.com"]

[Event "Titled Tuesday Blitz August 3 2021"]
[White "Gontcharov, Vladislav"]
[Black "Nasyrova, Ekaterina"]
[WhiteFideId "4123492"]
[BlackFideId "44157797"]
[WhiteElo "2503"]
[BlackElo "2115"]
[Result "1-0"]
[Round "07"]
[TimeControl "180+1"]
[Date "2021.08.03"]
[WhiteClock "0:00:22"]
[BlackClock "0:00:01"]

1. e4 {[%clk 0:02:59]}  e5 {[%clk 0:02:59]} 2. Nf3 {[%clk 0:02:57]}  Nc6 {[%clk 0:02:59]} 3. Bb5 {[%clk 0:02:57]}  Nf6 {[%clk 0:02:59]} 4. d3 {[%clk 0:02:57]}  Bc5 {[%clk 0:02:54]} 5. O-O {[%clk 0:02:56]}  d6 {[%clk 0:02:51]} 6. c3 {[%clk 0:02:52]}  O-O {[%clk 0:02:50]} 7. Re1 {[%clk 0:02:49]}  Bb6 {[%clk 0:02:50]} 8. h3 {[%clk 0:02:48]}  Ne7 {[%clk 0:02:50]} 9. b4 {[%clk 0:02:44]}  c6 {[%clk 0:02:50]} 10. Bc4 {[%clk 0:02:43]}  Ng6 {[%clk 0:02:50]} 11. Be3 {[%clk 0:02:41]}  Be6 {[%clk 0:02:35]} 12. Nbd2 {[%clk 0:02:38]}  d5 {[%clk 0:02:27]} 13. exd5 {[%clk 0:02:32]}  cxd5 {[%clk 0:02:26]} 14. Bb3 {[%clk 0:02:32]}  Rc8 {[%clk 0:02:18]} 15. Rc1 {[%clk 0:02:19]}  Qd6 {[%clk 0:01:56]} 16. d4 {[%clk 0:02:11]}  e4 {[%clk 0:01:55]} 17. Nh2 {[%clk 0:02:03]}  a5 {[%clk 0:01:52]} 18. a3 {[%clk 0:02:02]}  Bc7 {[%clk 0:01:42]} 19. Nhf1 {[%clk 0:02:01]}  Nf4 {[%clk 0:01:38]} 20. Bxf4 {[%clk 0:01:56]}  Qxf4 {[%clk 0:01:39]} 21. Ng3 {[%clk 0:01:56]}  h5 {[%clk 0:01:32]} 22. Ndf1 {[%clk 0:01:55]}  h4 {[%clk 0:01:31]} 23. Nh5 {[%clk 0:01:48]}  Qg5 {[%clk 0:01:27]} 24. Nxf6+ {[%clk 0:01:45]}  Qxf6 {[%clk 0:01:26]} 25. Qh5 {[%clk 0:01:40]}  g6 {[%clk 0:01:22]} 26. Qe2 {[%clk 0:01:37]}  Qg5 {[%clk 0:01:19]} 27. Kh1 {[%clk 0:01:34]}  Kg7 {[%clk 0:00:57]} 28. c4 {[%clk 0:01:33]}  Bf4 {[%clk 0:00:47]} 29. Rc2 {[%clk 0:01:25]}  axb4 {[%clk 0:00:45]} 30. axb4 {[%clk 0:01:19]}  dxc4 {[%clk 0:00:38]} 31. Bxc4 {[%clk 0:01:18]}  Bf5 {[%clk 0:00:32]} 32. Bb3 {[%clk 0:01:10]}  Rxc2 {[%clk 0:00:27]} 33. Bxc2 {[%clk 0:01:10]}  Re8 {[%clk 0:00:13]} 34. Qb5 {[%clk 0:01:04]}  Qf6 {[%clk 0:00:09]} 35. Ne3 {[%clk 0:00:56]}  Re7 {[%clk 0:00:08]} 36. Nd5 {[%clk 0:00:51]}  Qd6 {[%clk 0:00:08]} 37. Nxe7 {[%clk 0:00:49]}  Qxe7 {[%clk 0:00:09]} 38. Qe2 {[%clk 0:00:45]}  Qxb4 {[%clk 0:00:07]} 39. Bxe4 {[%clk 0:00:44]}  Bd7 {[%clk 0:00:05]} 40. Rb1 {[%clk 0:00:41]}  Qxd4 {[%clk 0:00:04]} 41. Bxb7 {[%clk 0:00:37]}  Bc7 {[%clk 0:00:03]} 42. Qb2 {[%clk 0:00:36]}  Qxb2 {[%clk 0:00:02]} 43. Rxb2 {[%clk 0:00:36]}  Be5 {[%clk 0:00:02]} 44. Rd2 {[%clk 0:00:34]}  Bf5 {[%clk 0:00:02]} 45. Bd5 {[%clk 0:00:33]}  Kf6 {[%clk 0:00:02]} 46. Ra2 {[%clk 0:00:33]}  Be6 {[%clk 0:00:01]} 47. Bxe6 {[%clk 0:00:32]}  Kxe6 {[%clk 0:00:02]} 48. Kg1 {[%clk 0:00:31]}  Kf6 {[%clk 0:00:03]} 49. Kf1 {[%clk 0:00:31]}  Kf5 {[%clk 0:00:03]} 50. Ke2 {[%clk 0:00:31]}  f6 {[%clk 0:00:03]} 51. Ra5 {[%clk 0:00:29]}  g5 {[%clk 0:00:03]} 52. Kf3 {[%clk 0:00:29]}  Kg6 {[%clk 0:00:03]} 53. Ke4 {[%clk 0:00:29]}  Bf4 {[%clk 0:00:02]} 54. Kd5 {[%clk 0:00:28]}  Bd2 {[%clk 0:00:02]} 55. Ra2 {[%clk 0:00:25]}  Be1 {[%clk 0:00:02]} 56. Ke6 {[%clk 0:00:25]}  Bc3 {[%clk 0:00:02]} 57. Re2 {[%clk 0:00:23]}  Bd4 {[%clk 0:00:02]} 58. f3 {[%clk 0:00:23]}  Bc3 {[%clk 0:00:02]} 59. Re4 {[%clk 0:00:22]}  Bb2 {[%clk 0:00:02]} 60. f4 {[%clk 0:00:23]}  Bc3 {[%clk 0:00:01]} 61. f5+ {[%clk 0:00:22]}  Kg7 {[%clk 0:00:01]} 62. Rc4 {[%clk 0:00:22]}  Bb2 {[%clk 0:00:01]} 63. Rc7+ {[%clk 0:00:22]}  Kh6 {[%clk 0:00:01]} 64. Rf7 {[%clk 0:00:22]} 1-0


[Site "https://www.chess.com"]

[Event "Titled Tuesday Blitz August 3 2021"]
[White "Gunina, Valentina"]
[Black "Damjanovic, Vladimir"]
[WhiteFideId "4167570"]
[BlackFideId "903795"]
[WhiteElo "2399"]
[BlackElo "2374"]
[Result "1-0"]
[Round "07"]
[TimeControl "180+1"]
[Date "2021.08.03"]
[WhiteClock "0:00:04"]
[BlackClock "0:00:01"]

1. d4 {[%clk 0:03:00]}  Nf6 {[%clk 0:03:00]} 2. c4 {[%clk 0:03:00]}  c5 {[%clk 0:03:00]} 3. d5 {[%clk 0:03:00]}  b5 {[%clk 0:03:01]} 4. a4 {[%clk 0:03:00]}  bxc4 {[%clk 0:02:55]} 5. Nc3 {[%clk 0:03:00]}  d6 {[%clk 0:02:56]} 6. e4 {[%clk 0:03:00]}  g6 {[%clk 0:02:53]} 7. Bxc4 {[%clk 0:03:00]}  Bg7 {[%clk 0:02:54]} 8. Nf3 {[%clk 0:03:00]}  O-O {[%clk 0:02:54]} 9. O-O {[%clk 0:03:01]}  Bg4 {[%clk 0:02:54]} 10. h3 {[%clk 0:03:01]}  Bxf3 {[%clk 0:02:54]} 11. Qxf3 {[%clk 0:03:01]}  Nbd7 {[%clk 0:02:55]} 12. Qe2 {[%clk 0:03:02]}  Rb8 {[%clk 0:02:52]} 13. Bg5 {[%clk 0:02:54]}  Rb4 {[%clk 0:02:42]} 14. b3 {[%clk 0:02:32]}  Ne5 {[%clk 0:02:28]} 15. Na2 {[%clk 0:02:21]}  Rb8 {[%clk 0:02:23]} 16. Bb5 {[%clk 0:02:21]}  Ne8 {[%clk 0:02:10]} 17. f4 {[%clk 0:02:02]}  Nd7 {[%clk 0:02:10]} 18. Rab1 {[%clk 0:01:59]}  Nc7 {[%clk 0:02:03]} 19. Bc6 {[%clk 0:01:59]}  Rb6 {[%clk 0:01:50]} 20. a5 {[%clk 0:01:57]}  Ra6 {[%clk 0:01:42]} 21. b4 {[%clk 0:01:54]}  cxb4 {[%clk 0:01:42]} 22. Nxb4 {[%clk 0:01:54]}  Rxa5 {[%clk 0:01:41]} 23. e5 {[%clk 0:01:44]}  dxe5 {[%clk 0:01:34]} 24. d6 {[%clk 0:01:44]}  f6 {[%clk 0:00:59]} 25. dxc7 {[%clk 0:01:41]}  Qxc7 {[%clk 0:01:00]} 26. Bh4 {[%clk 0:01:39]}  Rc5 {[%clk 0:00:49]} 27. Bxd7 {[%clk 0:01:27]}  Qxd7 {[%clk 0:00:50]} 28. Bf2 {[%clk 0:01:27]}  Rb5 {[%clk 0:00:26]} 29. Qc4+ {[%clk 0:01:21]}  Kh8 {[%clk 0:00:26]} 30. fxe5 {[%clk 0:01:16]}  Rxe5 {[%clk 0:00:24]} 31. Rfd1 {[%clk 0:01:11]}  Qe6 {[%clk 0:00:12]} 32. Qxe6 {[%clk 0:01:04]}  Rxe6 {[%clk 0:00:13]} 33. Bxa7 {[%clk 0:01:02]}  f5 {[%clk 0:00:14]} 34. Nd5 {[%clk 0:00:58]}  Be5 {[%clk 0:00:04]} 35. Bc5 {[%clk 0:00:53]}  Rc8 {[%clk 0:00:03]} 36. Bxe7 {[%clk 0:00:50]}  Kg7 {[%clk 0:00:01]} 37. Rb7 {[%clk 0:00:48]}  Kh6 {[%clk 0:00:02]} 38. Bb4 {[%clk 0:00:43]}  Rd8 {[%clk 0:00:02]} 39. Be7 {[%clk 0:00:38]}  Rxe7 {[%clk 0:00:01]} 40. Rxe7 {[%clk 0:00:38]}  Bd6 {[%clk 0:00:01]} 41. Re2 {[%clk 0:00:37]}  Bc5+ {[%clk 0:00:01]} 42. Kf1 {[%clk 0:00:36]}  Rd6 {[%clk 0:00:01]} 43. Nc3 {[%clk 0:00:36]}  Ra6 {[%clk 0:00:01]} 44. Rc2 {[%clk 0:00:35]}  Bb4 {[%clk 0:00:01]} 45. Nd5 {[%clk 0:00:35]}  Bf8 {[%clk 0:00:02]} 46. Rc7 {[%clk 0:00:34]}  Bg7 {[%clk 0:00:02]} 47. Ne7 {[%clk 0:00:31]}  Bf6 {[%clk 0:00:01]} 48. Ng8+ {[%clk 0:00:31]}  Kg5 {[%clk 0:00:02]} 49. Rxh7 {[%clk 0:00:30]}  Be5 {[%clk 0:00:01]} 50. Re1 {[%clk 0:00:26]}  Bg3 {[%clk 0:00:01]} 51. Rd1 {[%clk 0:00:20]}  Ra2 {[%clk 0:00:01]} 52. Ne7 {[%clk 0:00:19]}  Rf2+ {[%clk 0:00:01]} 53. Kg1 {[%clk 0:00:20]}  Rc2 {[%clk 0:00:02]} 54. Nd5 {[%clk 0:00:18]}  Be5 {[%clk 0:00:01]} 55. Ne3 {[%clk 0:00:18]}  Re2 {[%clk 0:00:02]} 56. Nf1 {[%clk 0:00:18]}  Bf4 {[%clk 0:00:02]} 57. h4+ {[%clk 0:00:17]}  Kg4 {[%clk 0:00:02]} 58. Rg7 {[%clk 0:00:18]}  Kh5 {[%clk 0:00:02]} 59. g3 {[%clk 0:00:17]}  Be5 {[%clk 0:00:02]} 60. Rd3 {[%clk 0:00:13]}  Bxg7 {[%clk 0:00:01]} 61. Nh2 {[%clk 0:00:07]}  Be5 {[%clk 0:00:02]} 62. Kh1 {[%clk 0:00:06]}  Rb2 {[%clk 0:00:02]} 63. Rd8 {[%clk 0:00:05]}  Bxg3 {[%clk 0:00:01]} 64. Rh8# {[%clk 0:00:04]} 1-0


[Site "https://www.chess.com"]